bitfinex-derivatives/quotes_ETHF0:USTF0_20260102
["timestamp","ask_amount","ask_price","bid_price","bid_amount"]
[1767385892465,0.13649917,3120.7,3119.1,0.13948251]
[1767385893171,0.13649917,3120.7,3119.1,0.14351407]
[1767385893673,0.16031,3120.6,3119.1,0.14351407]
[1767385894871,0.13649917,3120.5,3119.1,0.14351407]
[1767385895066,0.00480692,3120.1,3119.1,0.14351407]
[1767385895277,0.00480692,3120.1,3119.1,0.00403156]
[1767385895572,0.14130609,3120.1,3119.1,0.00403156]
[1767385896067,0.00480692,3120.1,3119.1,0.00403156]
[1767385899275,0.00480692,3120.1,3119.1,0.14351407]
[1767385899479,0.1603,3120.8,3119.3,0.13948251]
[1767385899681,0.13649917,3121.3,3119.6,0.93720531]
[1767385899972,0.13649917,3121.3,3119.7,0.13948251]
[1767385900380,0.00480692,3120.7,3120.1,0.00480692]
[1767385900880,0.13649917,3121.3,3120.1,0.00480692]
[1767385901281,0.16026,3121.5,3120.1,0.14428943]
[1767385901676,0.00480692,3120.9,3120.1,0.14428943]
[1767385901882,0.16026,3121.5,3120.1,0.14428943]
[1767385902088,0.00345513,3121.7,3120.5,0.13948251]
[1767385902878,0.00480692,3121.4,3120.5,0.13948251]
[1767385911293,0.00345513,3121.7,3120.5,0.13948251]
[1767385912386,0.00345513,3121.7,3120.8,0.13948251]
[1767385913086,0.46606522,3122.3,3120.8,0.13948251]
[1767385913281,0.00480692,3121.9,3120.8,0.13948251]
[1767385914394,0.00766254,3121.9,3120.8,0.13948251]
[1767385916802,0.46606522,3122.3,3121.2,0.13948251]
[1767385917000,0.46606522,3122.3,3120.8,0.13948251]
[1767385918106,0.00320462,3121.9,3120.8,0.13948251]
[1767385921102,0.00320462,3121.9,3120.3,0.7977228]
[1767385921306,0.13672303,3121.8,3120.1,0.29940729]
[1767385921608,0.13672303,3121.7,3120.1,0.13907729]
[1767385922608,0.13672303,3121.3,3120.1,0.00480692]
[1767385923209,0.13672303,3121.2,3120.1,0.00480692]
[1767385925515,0.13672303,3121.0,3120.1,0.00480692]
[1767385925709,0.13672303,3121.0,3119.3,4.42527037]
[1767385926610,0.29702303,3120.9,3119.3,4.42527037]
[1767385926816,0.29702303,3120.9,3119.8,0.00480692]
[1767385932119,0.1603,3120.8,3119.8,0.00480692]
[1767385932322,0.1603,3120.7,3119.8,0.00480692]
[1767385936421,0.16031,3120.6,3119.8,0.00480692]
[1767385936616,0.16031,3120.6,3118.2,5.67298091]
[1767385936617,0.16033,3120.3,3118.9,0.13427037]
[1767385936822,0.13672303,3120.6,3118.9,0.13427037]
[1767385937622,0.16033,3120.2,3118.9,0.13427037]
[1767385937819,0.16513692,3120.2,3119.5,0.00480692]
[1767385938025,0.29705303,3120.1,3118.6,4.292]
[1767385938221,0.3007324,3120.1,3118.6,4.292]
[1767385939123,0.3007324,3120.1,3119.3,0.00480692]
[1767385940318,0.16400937,3120.1,3119.3,0.00480692]
[1767385943117,0.00367937,3120.1,3119.3,0.00480692]
[1767385952041,0.14037129,3120.1,3119.3,0.00480692]
[1767385952234,0.30071129,3120.1,3119.3,0.00480692]
[1767385952437,0.29705192,3119.6,3117.8,0.79271839]
[1767385952742,0.79844828,3118.8,3117.4,0.92881308]
[1767385952937,0.79844828,3118.9,3117.4,0.92881308]
[1767385953144,0.25524295,3119.6,3117.1,0.79844828]
[1767385953145,0.79844828,3118.6,3117.1,0.79844828]
[1767385953339,0.00480692,3118.2,3117.5,0.00480692]
[1767385957433,0.3207,3118.1,3117.5,0.00480692]
[1767385958142,0.3207,3118.1,3117.1,0.00390259]
[1767385959448,0.3207,3118.1,3117.3,0.00480692]
[1767385959746,0.45739192,3118.1,3116.9,0.78742666]
[1767385959940,0.13669192,3117.9,3116.9,0.78742666]
[1767385960145,0.29714192,3117.9,3116.9,0.78742666]
[1767385960448,0.16045,3117.9,3116.9,0.78742666]
[1767385960644,0.16406896,3117.9,3116.9,0.79063545]
[1767385961441,0.00361896,3117.9,3116.9,0.79063545]
[1767385964659,0.00361896,3117.9,3117.0,0.1303648]
[1767385964950,0.3207,3118.1,3117.0,0.1303648]
[1767385966051,0.32361223,3118.1,3117.0,0.1303648]
[1767385967551,0.32361223,3118.1,3116.9,0.79063545]
[1767385968555,0.16046,3117.7,3116.9,0.79063545]
[1767385969954,0.16046,3117.7,3116.3,0.1303648]
[1767385970958,0.16046,3117.6,3116.3,0.13434958]
[1767385971151,0.16047,3117.5,3116.3,0.13434958]
[1767385972760,0.00243034,3118.0,3116.3,0.00398478]
[1767385972955,0.16049,3117.1,3115.7,0.1303648]
[1767385973154,0.16049,3117.0,3115.7,0.1303648]
[1767385974060,0.16049,3117.0,3115.7,0.1334595]
[1767385975551,2.36260288,3117.7,3115.7,0.1334595]
[1767385975754,0.1605,3116.9,3115.7,0.1334595]
[1767385975954,0.00480692,3116.6,3115.7,0.1334595]
[1767385976750,0.16047,3117.5,3115.7,0.1334595]
[1767385976950,0.16047,3117.5,3115.8,0.1303648]
[1767385977154,0.48405223,3118.1,3116.1,0.1303648]
[1767385977350,1.00892744,3118.0,3116.1,0.1303648]
[1767385977552,0.48405223,3118.1,3116.6,0.1303648]
[1767385977754,0.00480692,3117.7,3117.1,0.1303648]
[1767385978358,0.48405223,3118.1,3117.1,0.1303648]
[1767385979363,0.00480692,3117.9,3117.1,0.1303648]
[1767385980556,0.00480692,3117.9,3117.0,0.00480692]
[1767385981162,0.16525692,3117.9,3117.0,0.00480692]
[1767385983651,0.16046,3117.7,3115.9,0.13632207]
[1767385983856,1.0155125,3117.6,3115.9,0.13632207]
[1767385984051,0.16046,3117.7,3115.9,0.13632207]
[1767385984561,0.00480692,3117.9,3116.0,1.51904463]
[1767385984763,0.00480692,3117.9,3116.7,0.13632207]
[1767385988356,0.273,3117.8,3116.7,0.13632207]
[1767385994664,0.00291223,3118.1,3116.7,0.13632207]
[1767385995767,0.00480692,3117.7,3116.7,0.13632207]
[1767385996362,0.00291223,3118.1,3116.7,0.13632207]
[1767385997367,0.00480692,3117.7,3116.7,0.13632207]
[1767385997775,0.048,3118.0,3116.9,0.13632207]
[1767385998066,0.16041,3118.7,3116.9,0.13632207]
[1767385998272,1.01777408,3118.6,3116.9,0.13632207]
[1767385998460,1.17829454,3118.5,3116.9,0.13632207]
[1767385998661,0.16042,3118.5,3116.9,0.13632207]
[1767385998870,0.00480692,3118.0,3116.9,0.13632207]
[1767386003669,0.00480692,3118.0,3116.6,0.14112899]
[1767386003967,0.16046,3117.8,3116.6,0.14112899]
[1767386006166,0.00480692,3118.0,3116.6,0.14112899]
[1767386006370,0.16046,3117.7,3116.6,0.14112899]
[1767386008062,0.16046,3117.6,3116.6,0.14112899]
[1767386008267,0.16046,3117.6,3116.6,0.00480692]
[1767386008865,0.00480692,3118.0,3117.1,0.13983942]
[1767386009170,0.00480692,3118.0,3117.3,0.7991348]
[1767386009371,0.00480692,3118.0,3117.1,0.13983942]
[1767386011376,0.00480692,3118.0,3116.6,0.00480692]
[1767386011681,0.0039286,3118.5,3117.9,0.13362087]
[1767386011975,0.0039286,3118.5,3117.9,0.00414249]
[1767386012568,0.00873552,3118.5,3117.9,0.00414249]
[1767386019173,0.00873552,3118.5,3117.9,0.13776336]
[1767386019875,0.16038,3119.3,3117.9,0.13776336]
[1767386020880,0.00320462,3118.9,3118.4,0.13362087]
[1767386021783,0.00320462,3118.9,3118.3,0.00480692]
[1767386025684,0.16360462,3118.9,3118.3,0.00480692]
[1767386031095,0.16360462,3118.9,3118.3,0.13842779]
[1767386033490,0.16360462,3118.9,3118.3,0.00480692]
[1767386036496,0.1604,3118.8,3118.3,0.00480692]
[1767386036788,0.1604,3118.8,3117.9,0.13776336]
[1767386036789,0.00320462,3118.9,3117.9,0.13776336]
[1767386036990,0.00320462,3118.9,3117.9,0.00414249]
[1767386037198,0.00320462,3118.9,3117.5,0.13362087]
[1767386037892,0.16043,3118.3,3117.5,0.13362087]
[1767386038196,0.16043,3118.3,3117.5,0.13680081]
[1767386038897,0.16043,3118.3,3117.6,0.00480692]
[1767386039090,0.00320462,3118.9,3117.6,0.00480692]
[1767386039495,0.16043,3118.2,3117.6,0.00480692]
[1767386041298,0.7985026,3118.7,3117.1,0.14304248]
[1767386041499,0.16044,3118.0,3117.1,0.14304248]
[1767386042499,0.16044,3118.0,3117.2,0.00480692]
[1767386046791,0.16044,3118.0,3117.2,0.1478494]
[1767386055313,4.383,3118.4,3117.2,0.00480692]
[1767386055608,0.16046,3117.8,3117.2,0.00480692]
[1767386056403,0.16046,3117.8,3117.2,0.1478494]
[1767386060209,0.16043,3118.3,3117.2,0.1478494]
[1767386062408,0.16043,3118.2,3117.2,0.1478494]
[1767386063800,0.16041,3118.7,3117.2,0.1478494]
[1767386064006,0.16041,3118.7,3117.3,0.14304248]
[1767386065214,0.16041,3118.6,3117.3,0.14304248]
[1767386068516,0.00320462,3118.9,3117.3,0.14304248]
[1767386068719,0.16042,3118.4,3117.3,0.14304248]
[1767386076624,0.16042,3118.4,3117.4,0.1310148]
[1767386082838,0.16360462,3118.9,3118.0,0.1310148]
[1767386083032,0.00320462,3118.9,3118.0,0.1310148]
[1767386083334,0.00320462,3118.9,3117.7,0.79868281]
[1767386083335,0.16042,3118.5,3117.3,0.92969761]
[1767386083631,0.16042,3118.5,3117.4,0.1310148]
[1767386083838,0.16042,3118.5,3117.6,0.1310148]
[1767386084536,0.16042,3118.5,3117.8,0.1310148]
[1767386086137,0.00320462,3118.9,3118.4,0.92969761]
[1767386086334,0.16039,3119.1,3118.4,0.1310148]
[1767386087230,0.16519692,3119.1,3118.4,0.1310148]
[1767386088035,0.00480692,3119.1,3118.4,0.1310148]
[1767386089235,0.0039168,3119.3,3117.6,0.16046]
[1767386089236,0.0039168,3119.3,3118.6,0.1310148]
[1767386089439,0.16034,3120.1,3119.0,0.1310148]
[1767386089740,0.16034,3120.1,3119.2,0.1310148]
[1767386090240,0.00480692,3120.0,3119.3,0.00480692]
[1767386090733,0.0070818,3120.0,3119.3,0.00713901]
[1767386094745,0.16034,3120.1,3119.5,0.79868281]
[1767386094941,0.1603,3120.7,3119.6,0.1310148]
[1767386095934,0.16326881,3120.7,3119.6,0.1310148]
[1767386096943,0.79868281,3120.6,3119.6,0.1310148]
[1767386097244,0.00480692,3120.4,3119.6,0.1310148]
[1767386099942,0.00480692,3120.4,3119.7,0.79868281]
[1767386100142,0.00480692,3120.4,3119.8,0.13845443]
[1767386100446,0.16032,3120.5,3119.8,0.13845443]
[1767386102248,0.16032,3120.4,3119.4,0.13845443]
[1767386104240,0.00296881,3120.7,3119.5,0.13845443]
[1767386104439,0.00296881,3120.7,3119.7,0.13845443]
[1767386104948,0.16326881,3120.7,3119.7,0.13845443]
[1767386105135,0.16031,3120.6,3119.7,0.13845443]
[1767386105840,0.16032,3120.5,3119.7,0.13845443]
[1767386106040,0.79868281,3120.6,3119.3,0.00713901]
[1767386106241,0.16033,3120.3,3119.3,0.14559344]
[1767386111851,0.16033,3120.3,3119.4,0.13845443]
[1767386112053,0.16033,3120.3,3119.6,0.13845443]
[1767386112947,0.00296881,3120.7,3119.6,0.13845443]
[1767386113549,0.16031,3120.6,3119.6,0.13845443]
[1767386124954,0.16031,3120.6,3119.8,0.13845443]
[1767386125961,0.00296881,3120.7,3119.8,0.13845443]
[1767386127359,0.00296881,3120.7,3120.0,0.13845443]
[1767386128257,0.00296881,3120.7,3120.0,0.93713724]
[1767386128462,0.16028,3121.1,3120.1,0.13041395]
[1767386129464,0.163734,3121.1,3120.1,0.13041395]
[1767386130966,0.003454,3121.1,3120.3,0.13259697]
[1767386137668,0.16025,3121.9,3120.5,0.13259697]
[1767386137875,0.16025,3121.9,3120.4,0.79723462]
[1767386137876,0.16025,3121.9,3120.9,0.13740389]
[1767386138771,0.16355772,3121.9,3120.9,0.13740389]
[1767386139870,4.393,3122.6,3120.9,0.13740389]
[1767386140072,0.16022,3122.3,3120.9,0.13740389]
[1767386140867,0.16252562,3122.3,3120.9,0.13740389]
[1767386142574,0.00230562,3122.3,3121.3,0.13259697]
[1767386143171,0.16019,3122.9,3121.3,0.13259697]
[1767386143375,0.16019,3122.9,3121.2,0.79723462]
[1767386143376,0.16019,3122.9,3121.7,0.13259697]
[1767386144267,0.16378063,3122.9,3121.7,0.13490966]
[1767386148174,0.16016,3123.5,3122.0,0.79723462]
[1767386148475,0.16016,3123.5,3122.5,0.13259697]
[1767386149371,0.16315275,3123.5,3122.5,0.13259697]
[1767386149578,0.00299275,3123.5,3122.5,0.13259697]
[1767386151079,0.16013,3124.1,3122.5,0.13259697]
[1767386151982,0.1633968,3124.1,3122.5,0.13259697]
[1767386153888,0.1633968,3124.1,3122.7,0.13259697]
[1767386154474,0.16014,3123.9,3122.7,0.13259697]
[1767386154783,0.16015,3123.8,3122.7,0.13259697]
[1767386155685,0.0032668,3124.1,3122.7,0.13259697]
[1767386157885,0.0032668,3124.1,3123.4,0.01079457]
[1767386158288,0.0032668,3124.1,3123.7,0.02158914]
[1767386158584,0.0032668,3124.1,3123.9,0.03238371]
[1767386158779,0.16011,3124.4,3123.3,0.13259697]
[1767386158979,0.16012,3124.3,3123.3,0.13259697]
[1767386159580,0.16012,3124.3,3123.8,0.01079457]
[1767386159775,0.16013,3124.2,3123.8,0.00273853]
[1767386159981,0.16013,3124.1,3123.3,0.13259697]
[1767386160181,0.16014,3124.0,3122.6,0.13991998]
[1767386160476,0.16014,3124.0,3123.3,0.01079457]
[1767386160781,0.16015,3123.8,3122.6,0.13991998]
[1767386161983,0.16015,3123.8,3122.6,0.143507]
[1767386162382,0.00362076,3124.3,3122.6,0.143507]
[1767386162684,0.00362076,3124.3,3122.9,0.13991998]
[1767386163888,0.16374076,3124.3,3122.9,0.13991998]
[1767386164483,0.16014,3123.9,3122.9,0.13991998]
[1767386165287,0.16014,3123.8,3122.9,0.13991998]
[1767386165980,0.16016,3123.5,3122.6,0.00358702]
[1767386166381,0.79723462,3124.1,3122.6,0.00358702]
[1767386166590,0.00901534,3124.3,3122.6,0.00358702]
[1767386166591,0.79723462,3123.7,3122.6,0.00358702]
[1767386166792,0.99230031,3123.6,3122.4,0.00480692]
[1767386167090,0.16019,3122.9,3122.1,0.13991998]
[1767386167285,0.16019,3122.9,3121.1,0.13991998]
[1767386167894,0.00480692,3122.3,3121.7,0.00480692]
[1767386168091,0.00480692,3122.3,3121.8,0.13991998]
[1767386172183,0.00480692,3122.3,3121.7,0.00480692]
[1767386172388,0.00480692,3122.3,3121.1,0.0024994]
[1767386173387,0.00480692,3122.3,3121.4,0.00480692]
[1767386176585,0.16023,3122.2,3121.4,0.00480692]
[1767386182403,0.16024,3122.0,3121.4,0.00480692]
[1767386182706,0.16384109,3122.0,3121.1,0.14241938]
[1767386183091,0.00480692,3122.3,3121.3,0.13991998]
[1767386183497,0.00480692,3122.3,3121.6,0.13991998]
[1767386183907,0.16019,3123.0,3121.6,0.13991998]
[1767386184110,0.16019,3122.9,3121.6,0.13991998]
[1767386184300,0.1602,3122.7,3121.6,0.13991998]
[1767386185198,0.00480692,3122.5,3121.6,0.13991998]
[1767386190409,0.00480692,3122.5,3121.5,0.00480692]
[1767386191402,0.00480692,3122.5,3121.5,0.14675528]
[1767386191707,0.00364238,3123.0,3121.5,0.14675528]
[1767386191908,0.00364238,3123.0,3121.9,0.14194836]
[1767386192707,0.00480692,3122.8,3121.9,0.14194836]
[1767386192908,0.16500692,3122.8,3121.5,0.14675528]
[1767386193406,0.1602,3122.7,3121.5,0.14675528]
[1767386195906,0.00480692,3122.8,3121.7,0.79723462]
[1767386196211,0.00480692,3122.8,3121.8,0.14194836]
[1767386197212,0.00364238,3123.0,3121.8,0.14194836]
[1767386198706,0.79642814,3122.8,3121.8,0.14194836]
[1767386201016,0.79642814,3122.8,3121.5,0.00480692]
[1767386201017,0.79642814,3122.4,3121.5,0.00480692]
[1767386204012,0.16021,3122.5,3121.5,0.00480692]
[1767386220223,0.16022,3122.4,3121.5,0.00480692]
[1767386220438,0.16023,3122.1,3121.1,0.0024994]
[1767386220744,0.16024,3121.9,3121.1,0.0024994]
[1767386220935,0.16024,3121.9,3120.6,0.13896692]
[1767386221338,0.14243233,3122.0,3120.2,0.13896692]
[1767386221646,0.00480692,3121.4,3120.8,0.00480692]
[1767386221847,0.00480692,3121.4,3120.8,0.00383665]
[1767386222842,0.00480692,3121.4,3120.8,0.00864357]
[1767386223346,0.16023,3122.2,3120.8,0.14761049]
[1767386224442,0.00480692,3121.8,3120.8,0.14761049]
[1767386226440,0.00480692,3121.8,3121.0,0.93572974]
[1767386243662,0.00480692,3121.8,3121.1,0.13896692]
[1767386248169,0.00480692,3121.8,3120.8,0.00864357]
[1767386249563,0.16022,3122.4,3121.5,0.79676282]
[1767386250068,0.16022,3122.4,3121.3,0.13909478]
[1767386255775,0.16022,3122.3,3121.3,0.13909478]
[1767386255974,0.16022,3122.3,3120.9,0.9358576]
[1767386257780,0.16022,3122.3,3121.0,0.13909478]
[1767386263287,0.16023,3122.2,3121.0,0.13909478]
[1767386263789,0.16023,3122.1,3121.0,0.13909478]
[1767386263989,0.16023,3122.1,3120.8,0.00864357]
[1767386264488,0.16023,3122.1,3120.8,0.14773835]
[1767386268301,0.16025,3121.8,3120.8,0.00864357]
[1767386269194,0.16022,3122.3,3120.8,0.14773835]
[1767386269398,1.02026253,3122.2,3120.8,0.14773835]
[1767386269700,0.14265273,3122.3,3120.8,0.14773835]
[1767386269901,1.16279878,3122.2,3120.8,0.00864357]
[1767386270102,0.14265273,3122.2,3120.8,0.00864357]
[1767386270298,0.16025,3121.9,3120.8,0.00864357]
[1767386270499,0.16025,3121.8,3120.8,0.00864357]
[1767386278515,0.16022,3122.3,3120.8,0.14773835]
[1767386283521,0.16023,3122.2,3120.8,0.14773835]
[1767386283716,0.16023,3122.2,3120.8,0.00864357]
[1767386283717,0.16024,3122.0,3120.8,0.00864357]
[1767386289016,0.16025,3121.9,3120.8,0.00864357]
[1767386289219,0.16025,3121.8,3120.8,0.00864357]
[1767386289424,0.16025,3121.8,3120.8,0.13912988]
[1767386289723,0.14148972,3122.3,3120.8,0.13912988]
[1767386289724,0.16022,3122.3,3120.8,0.13912988]
[1767386293924,0.16022,3122.3,3121.0,0.13048631]
[1767386294118,0.16019,3122.9,3121.3,0.92725437]
[1767386294323,1.18042918,3122.8,3121.3,0.92725437]
[1767386294627,0.1602,3122.8,3121.3,0.92725437]
[1767386295616,0.1602,3122.8,3121.4,0.13048631]
[1767386298530,0.00364238,3123.0,3121.8,0.13048631]
[1767386303928,0.1602,3122.7,3121.0,0.13048631]
[1767386304233,0.1451321,3123.0,3121.0,0.13048631]
[1767386305333,0.1451321,3123.0,3121.3,0.13048631]
[1767386305533,0.16021,3122.5,3121.3,0.13048631]
[1767386309326,0.00364238,3123.0,3121.3,0.13048631]
[1767386311438,0.16383238,3123.0,3121.3,0.13048631]
[1767386314242,0.16383238,3123.0,3121.0,0.16029]
[1767386314243,0.13711057,3123.0,3121.0,0.29844782]
[1767386315543,0.16021,3122.6,3121.0,0.29844782]
[1767386316343,0.16021,3122.6,3121.1,0.13815782]
[1767386318147,0.00364238,3123.0,3121.8,0.93492588]
[1767386318343,0.00364238,3123.0,3121.8,0.13815782]
[1767386319547,0.16021,3122.6,3121.8,0.13815782]
[1767386320039,0.16021,3122.6,3121.4,0.13815782]
[1767386320547,0.16021,3122.6,3121.4,0.93475432]
[1767386321140,0.16021,3122.6,3121.6,0.7965965]
[1767386323645,0.16021,3122.6,3121.4,0.13815782]
[1767386323852,0.16021,3122.6,3121.5,0.13815782]
[1767386324449,0.16021,3122.6,3121.6,0.7965965]
[1767386325750,0.16021,3122.6,3121.7,0.13815782]
[1767386326156,0.16021,3122.6,3121.9,0.7965965]
[1767386326853,0.16021,3122.6,3121.6,0.7965965]
[1767386327050,0.16021,3122.6,3121.4,0.7965965]
[1767386327655,0.16021,3122.6,3121.4,0.93475432]
[1767386333161,0.15821,3122.6,3121.4,0.93475432]
[1767386334362,0.15821,3122.6,3121.5,0.13815782]
[1767386340564,0.7965965,3122.7,3121.1,0.12967038]
[1767386340869,0.00364238,3123.0,3121.5,0.92626688]
[1767386340870,0.16022,3122.4,3121.5,0.92626688]
[1767386341366,0.16383238,3123.0,3121.5,0.92626688]
[1767386341562,1.18524734,3122.9,3121.8,0.92626688]
[1767386341867,0.00364238,3123.0,3122.4,0.7965965]
[1767386342061,0.00364238,3123.0,3122.4,0.00480692]
[1767386349178,0.13853907,3124.2,3122.6,0.7965965]
[1767386349383,0.16014,3123.8,3122.9,0.7965965]
[1767386349572,0.16014,3123.8,3122.7,0.92626688]
[1767386350272,0.16372462,3123.8,3122.7,0.92626688]
[1767386351378,0.16372462,3123.8,3122.8,0.12967038]
[1767386352079,0.16372462,3123.8,3122.4,0.00480692]
[1767386352080,0.80018112,3123.8,3122.4,0.1344773]
[1767386352676,0.16016,3123.6,3122.4,0.1344773]
[1767386355980,0.16016,3123.6,3122.4,0.9310738]
[1767386356481,0.16016,3123.6,3122.5,0.12967038]
[1767386359285,0.16016,3123.6,3122.7,0.92626688]
[1767386359677,0.16016,3123.6,3122.8,0.12967038]
[1767386360080,0.00358462,3123.8,3122.8,0.12967038]
[1767386362786,0.94752666,3124.7,3123.5,0.7965965]
[1767386363287,0.94752666,3124.7,3123.7,0.7965965]
[1767386363991,0.95005922,3124.7,3123.7,0.92903608]
[1767386365786,0.95005922,3124.7,3123.7,0.13243958]
[1767386368091,0.95005922,3124.7,3123.7,0.92903608]
[1767386368587,0.95005922,3124.7,3123.7,0.13243958]
[1767386368791,0.1601,3124.6,3123.7,0.13243958]
[1767386369291,0.1601,3124.6,3123.8,0.7965965]
[1767386369592,0.1601,3124.6,3123.7,0.13243958]
[1767386371691,0.1601,3124.6,3123.7,0.0027692]
[1767386378599,0.16011,3124.5,3123.7,0.0027692]
[1767386379206,0.78995922,3124.7,3124.1,0.7965965]
[1767386379408,0.78995922,3124.7,3124.1,0.00480692]
[1767386382501,0.16011,3124.6,3123.7,0.0027692]
[1767386382701,0.16011,3124.5,3123.7,0.0027692]
[1767386383496,0.16011,3124.5,3123.8,0.00480692]
[1767386393312,0.79476614,3124.7,3123.2,0.13291118]
[1767386393313,0.92483501,3124.7,3123.2,0.13291118]
[1767386393617,0.16013,3124.2,3122.5,0.13291118]
[1767386394417,0.16013,3124.2,3123.0,0.00480692]
[1767386396720,0.16013,3124.1,3123.0,0.00480692]
[1767386398216,0.13006887,3124.3,3123.0,0.00480692]
[1767386398420,0.16015,3123.7,3123.0,0.00480692]
[1767386399523,0.16015,3123.7,3122.5,0.00393515]
[1767386400520,0.16015,3123.7,3122.8,0.00480692]
[1767386400717,0.16015,3123.7,3122.5,0.00393515]
[1767386400718,0.13200736,3123.4,3122.5,5.15e-06]
[1767386400923,0.16019,3122.9,3121.6,0.12972243]
[1767386401825,0.00480692,3122.6,3121.9,0.00480692]
[1767386405526,0.00480692,3122.6,3121.9,0.13452935]
[1767386413830,0.00480692,3122.6,3121.9,0.00480692]
[1767386416636,0.00480692,3122.6,3121.9,0.13452935]
[1767386423529,0.16016,3123.6,3121.9,0.13452935]
[1767386423734,0.16016,3123.5,3122.2,0.12972243]
[1767386424635,0.00480692,3123.2,3122.2,0.12972243]
[1767386435749,0.16014,3124.0,3122.2,0.12972243]
[1767386436248,0.16014,3123.9,3122.2,0.12972243]
[1767386436649,0.00480692,3123.4,3122.2,0.12972243]
[1767386439346,0.16017,3123.3,3122.2,0.12972243]
[1767386442348,0.16017,3123.3,3121.9,0.14773324]
[1767386442547,0.00480692,3123.4,3122.7,0.14292632]
[1767386446055,0.00480692,3123.4,3122.3,0.14292632]
[1767386446956,0.16011,3124.6,3123.2,0.14292632]
[1767386447256,0.16011,3124.6,3123.4,0.93884354]
[1767386447657,0.16011,3124.6,3123.5,0.14292632]
[1767386448154,0.00480692,3124.4,3123.7,0.14773324]
[1767386448457,0.00480692,3124.4,3123.6,0.79365046]
[1767386449255,0.00480692,3124.4,3123.4,0.79591722]
[1767386449458,0.00480692,3124.4,3123.6,0.00480692]
[1767386456264,0.00480692,3124.4,3123.7,0.79591722]
[1767386457664,0.78995922,3124.7,3123.9,0.79591722]
[1767386457859,0.78995922,3124.7,3124.1,0.79591722]
[1767386458665,0.79476614,3124.7,3124.1,0.93884354]
[1767386460567,0.16007,3125.3,3124.3,0.79591722]
[1767386461069,0.16007,3125.3,3124.1,0.79591722]
[1767386461260,0.16007,3125.2,3124.0,0.79591722]
[1767386461456,0.16279301,3125.2,3123.9,0.00331015]
[1767386461668,1.0936191,3125.2,3123.9,4.25231015]
[1767386461870,0.93082609,3125.0,3123.9,0.00331015]
[1767386462269,0.13490887,3125.0,3124.0,0.79591722]
[1767386462470,0.16279301,3125.2,3124.0,0.79591722]
[1767386464362,1.0936191,3125.2,3123.9,0.00331015]
[1767386464562,0.13490887,3124.7,3123.9,0.00331015]
[1767386467679,0.16009,3124.9,3123.9,0.00331015]
[1767386468569,0.00272301,3125.2,3124.4,0.79591722]
[1767386468772,0.00272301,3125.2,3124.2,0.79591722]
[1767386474377,0.00272301,3125.2,3123.9,0.1386041]
[1767386474569,0.79864023,3125.2,3123.9,0.00331015]
[1767386474771,0.9335491,3125.2,3123.9,4.25031015]
[1767386475773,0.9335491,3125.2,3123.9,0.00331015]
[1767386476474,0.9335491,3125.2,3123.9,0.79922737]
[1767386477174,0.93082609,3124.8,3123.9,0.00331015]
[1767386478078,0.13490887,3124.8,3123.9,0.00331015]
[1767386483280,0.93082609,3124.6,3123.9,0.00331015]
[1767386483471,0.93082609,3124.6,3123.6,0.00480692]
[1767386484075,0.13490887,3124.3,3123.6,0.00480692]
[1767386484282,0.79591722,3124.1,3123.0,4.246]
[1767386484484,0.79591722,3124.1,3123.0,4.24906494]
[1767386485276,0.79591722,3124.1,3123.2,0.00480692]
[1767386485277,0.00480692,3123.9,3123.2,0.00480692]
[1767386485882,0.93082609,3123.8,3123.0,0.00306494]
[1767386486084,0.93082609,3123.5,3122.1,4.40723]
[1767386486280,0.93082609,3123.5,3122.2,0.79591722]
[1767386486982,0.13490887,3123.5,3122.5,0.00480692]
[1767386492885,0.3195,3123.7,3122.5,0.00480692]
[1767386493891,0.46186839,3123.7,3122.5,0.00480692]
[1767386497389,0.14236839,3123.7,3122.5,0.00480692]
[1767386500097,0.3195,3123.6,3122.5,0.00480692]
[1767386505903,0.3195,3123.6,3122.5,0.16501692]
[1767386511201,0.14236839,3123.8,3122.5,0.16501692]
[1767386514400,0.46186839,3123.7,3122.5,0.16501692]
[1767386520617,0.13690101,3123.6,3122.6,4.256]
[1767386521316,0.3195,3123.7,3122.6,4.256]
[1767386521517,0.13690101,3123.6,3122.6,4.256]
[1767386522517,0.13690101,3123.6,3122.5,0.16501692]
[1767386522715,0.13690101,3123.6,3122.5,0.00480692]
[1767386523016,0.13690101,3123.6,3122.2,4.26275421]
[1767386523716,0.13490101,3123.6,3122.2,4.26275421]
[1767386523919,0.13490101,3123.6,3122.6,0.00480692]
[1767386530819,0.13690101,3123.2,3122.2,0.00375421]
[1767386531525,0.13690101,3123.0,3122.2,0.00375421]
[1767386531719,0.13948499,3123.0,3122.3,0.00480692]
[1767386532427,0.13948499,3123.0,3122.2,0.00375421]
[1767386533518,0.13948499,3123.0,3122.3,0.00480692]
[1767386535324,0.13948499,3123.0,3122.2,0.00375421]
[1767386536430,0.13948499,3123.0,3122.3,0.00320462]
[1767386537023,0.13948499,3123.0,3122.2,0.00375421]
[1767386537728,0.13948499,3123.0,3122.2,0.00275421]
[1767386540330,0.00258398,3123.0,3122.2,0.00275421]
[1767386542923,0.00258398,3123.0,3122.2,0.16297421]
[1767386543123,0.3195,3123.1,3122.2,0.16297421]
[1767386544132,0.32196016,3123.1,3122.2,0.16297421]
[1767386544525,0.32196016,3123.1,3122.2,0.16197421]
[1767386544921,0.32196016,3123.1,3122.2,0.7976183]
[1767386545124,0.14170793,3123.9,3122.3,0.13656299]
[1767386545325,0.14170793,3123.9,3122.3,3.33956299]
[1767386546035,0.14575009,3123.9,3122.3,3.33956299]
[1767386546226,0.14575009,3123.9,3122.4,0.16021]
[1767386546427,0.14575009,3123.9,3122.5,0.16021]
[1767386546634,0.14575009,3123.9,3122.6,4.258]
[1767386552431,0.14575009,3123.9,3122.5,0.16021]
[1767386552632,0.14575009,3123.9,3122.6,4.258]
[1767386554139,0.14575009,3123.9,3122.5,0.16021]
[1767386554432,0.14575009,3123.9,3122.6,4.258]
[1767386555838,0.00884908,3123.9,3122.7,0.14138873]
[1767386561444,0.00884908,3123.9,3122.7,0.30158873]
[1767386563953,0.00884908,3123.9,3122.2,0.16198421]
[1767386563954,0.14312561,3123.9,3122.2,0.16198421]
[1767386564147,0.14312561,3123.9,3122.3,4.259]
[1767386564445,0.14312561,3123.9,3122.3,5.05504155]
[1767386564649,0.93031808,3123.7,3122.3,5.05504155]
[1767386566049,0.93031808,3123.7,3122.3,5.21526155]
[1767386566246,0.13427653,3123.7,3122.5,0.95625155]
[1767386566453,0.00884908,3123.9,3122.7,0.79604155]
[1767386570848,0.14312561,3123.9,3122.5,0.95625155]
[1767386571054,0.93031808,3123.8,3122.5,0.95625155]
[1767386572459,0.93031808,3123.8,3122.6,4.261]
[1767386574263,0.79604155,3123.8,3122.5,0.95625155]
[1767386574564,0.79604155,3123.3,3122.3,3.442]